fUST/lending_fUST_20250831
["ID","MTS","AMOUNT","RATE_DAILY","PERIOD"]
[382479555,1756642965879,1223.59429142,0.00016518,2]
[382479556,1756642967453,5000.0,0.000175,2]
[382479563,1756642991982,3776.41570858,0.000175,2]
[382479564,1756642992007,1223.58429142,0.000175,2]
[382479565,1756642992363,8776.42570858,0.00016518,2]
[382479566,1756642992387,1223.57429142,0.00016518,2]
[382479567,1756643001715,2009.91228998,0.00017417,2]
[382479568,1756643017418,5000.0,0.000175,2]
[382479569,1756643041167,1766.5234186,0.000175,2]
[382479570,1756643041189,3233.4765814,0.000175,2]
[382479571,1756643064771,5000.0,0.000175,2]
[382479572,1756643074746,213.2438617,0.00016515,2]
[382479575,1756643086662,666.0,0.00016515,2]
[382479576,1756643090491,887.2895569,0.000175,2]
[382479577,1756643090521,4112.7104431,0.000175,2]
[382479581,1756643097071,180.856116,8.258e-05,2]
[382479582,1756643097284,180.856116,0.00012386,2]
[382479583,1756643097510,180.856116,0.00016515,2]
[382479586,1756643114490,5000.0,0.000175,2]
[382479591,1756643136663,344.7312089,0.00016511,2]
[382479592,1756643136687,1470.3885931,0.00016511,2]
[382479594,1756643138119,5000.0,0.000175,2]
[382479595,1756643162617,3529.6214069,0.000175,2]
[382479596,1756643162647,1470.3785931,0.000175,2]
[382479597,1756643165347,1219.024231,0.00013699,2]
[382479599,1756643186685,5000.0,0.000175,2]
[382479600,1756643201068,2310.6071759,0.00016511,2]
[382479601,1756643201092,10000.01,0.00016511,2]
[382479602,1756643201115,489.822514,0.00016511,2]
[382479603,1756643210520,5000.0,0.000175,2]
[382479604,1756643234639,4510.187486,0.000175,2]
[382479605,1756643234671,489.812514,0.000175,2]
[382479606,1756643256794,1758.67325375,0.00017415,2]
[382479607,1756643267756,1449.269055,0.00016511,2]
[382479608,1756643293461,417.66402659,0.00010618,2]
[382479609,1756643294213,-299.85556782,0.00017504,2]
[382479610,1756643295224,5884.59115066,0.000125,2]
[382479611,1756643295247,5567.22477006,0.000125,2]
[382479612,1756643295874,-307.73833342,0.00017504,2]
[382479613,1756643300764,-295.24201978,0.00017504,2]
[382479614,1756643303375,-154.49793884,0.00017504,2]
[382479615,1756643305981,-270.6470374,0.00017504,2]
[382479616,1756643308895,284.41141823,0.0001,2]
[382479617,1756643314504,4148.37381171,0.00017,2]
[382479618,1756643314527,10000.01,0.00017,2]
[382479619,1756643314550,10000.01,0.00017,2]
[382479620,1756643314573,10000.01,0.00017,2]
[382479621,1756643314596,10000.01,0.00017,2]
[382479622,1756643314619,10000.01,0.00017,2]
[382479623,1756643314643,10000.01,0.00017,2]
[382479624,1756643314666,10000.01,0.00017,2]
[382479625,1756643314690,10000.01,0.00017,2]
[382479626,1756643314714,10000.01,0.00017,2]
[382479627,1756643314740,8458.18277236,0.00017,2]
[382479629,1756643322715,212.01052399,0.00016,2]
[382479634,1756643357287,203.83846135,0.00017408,2]
[382479635,1756643388279,6691.1753855,0.00017417,2]
[382479665,1756643431861,-509.11785024,0.00017504,2]
[382479666,1756643431918,-3162.9012525,0.00017504,2]
[382479667,1756643431927,-1200.0,0.00017506,2]
[382479668,1756643431937,-300.0,0.00017506,2]
[382479669,1756643431946,-774.1,0.00017507,3]
[382479671,1756643431955,-387.05,0.00017507,3]
[382479673,1756643431964,-1715.07,0.00017507,3]
[382479675,1756643431973,-857.53,0.00017507,3]
[382479677,1756643431983,-428.77,0.00017507,3]
[382479679,1756643431991,-214.38,0.00017507,3]
[382479681,1756643432000,-643.19,0.00017507,3]
[382479683,1756643432009,-24154.31984242,0.00017508,2]
[382479684,1756643432020,-1215.99145658,0.00017508,2]
[382479747,1756643437730,-24629.688701,0.00017508,2]
[382479748,1756643437745,-1200.0,0.00017508,2]
[382479749,1756643437755,-2618.2481025,0.00017509,2]
[382479750,1756643437764,-209.40437684,0.00017509,2]
[382479751,1756643437774,-261.0,0.00017511,2]
[382479752,1756643437785,-480.0,0.00017513,2]
[382479753,1756643437795,-679.7,0.00017513,2]
[382479754,1756643437804,-1507.79,0.00017513,2]
[382479755,1756643437815,-829.44,0.00017513,2]
[382479756,1756643437824,-500.0,0.00017513,2]
[382479758,1756643437833,-402.27271783,0.00017513,2]
[382479760,1756643437843,-500.0,0.00017513,2]
[382479762,1756643437852,-500.0,0.00017513,2]
[382479764,1756643437861,-500.0,0.00017513,2]
[382479766,1756643437871,-500.0,0.00017513,2]
[382479768,1756643437880,-156.54929897,0.00017513,2]
[382479769,1756643437889,-500.0,0.00017513,2]
[382479770,1756643437899,-500.0,0.00017513,2]
[382479771,1756643437908,-500.0,0.00017513,2]
[382479772,1756643437918,-500.0,0.00017513,2]
[382479773,1756643437927,-500.0,0.00017513,2]
[382479774,1756643437936,-500.0,0.00017513,2]
[382479775,1756643437946,-500.0,0.00017513,2]
[382479776,1756643437955,-500.0,0.00017513,2]
[382479777,1756643437965,-500.0,0.00017513,2]
[382479778,1756643437974,-550.45074056,0.00017513,2]
[382479779,1756643437984,-500.0,0.00017513,2]
[382479780,1756643437994,-221.37328456,0.00017513,2]
[382479781,1756643438003,-500.0,0.00017513,2]
[382479782,1756643438012,-500.0,0.00017513,2]
[382479783,1756643438022,-500.0,0.00017513,2]
[382479784,1756643438031,-500.0,0.00017513,2]
[382479785,1756643438041,-500.0,0.00017513,2]
[382479786,1756643438050,-500.0,0.00017513,2]
[382479787,1756643438059,-500.0,0.00017513,2]
[382479788,1756643438068,-500.0,0.00017513,2]
[382479789,1756643438078,-500.0,0.00017513,2]
[382479790,1756643438087,-500.0,0.00017513,2]
[382479791,1756643438097,-500.0,0.00017513,2]
[382479792,1756643438106,-500.0,0.00017513,2]
[382479793,1756643438115,-500.0,0.00017513,2]
[382479794,1756643438125,-500.0,0.00017513,2]
[382479795,1756643438135,-500.0,0.00017513,2]
[382479796,1756643438144,-500.0,0.00017513,2]
[382479797,1756643438153,-500.0,0.00017513,2]
[382479798,1756643438162,-500.0,0.00017513,2]
[382479799,1756643438172,-570.1623212,0.00017513,2]
[382479800,1756643438181,-500.0,0.00017513,2]
[382479801,1756643438191,-500.0,0.00017513,2]
[382479802,1756643438200,-500.0,0.00017513,2]
[382479803,1756643438210,-500.0,0.00017513,2]
[382479805,1756643438219,-500.0,0.00017513,2]
[382479807,1756643438228,-500.0,0.00017513,2]
[382479809,1756643438237,-500.0,0.00017513,2]
[382479811,1756643438247,-500.0,0.00017513,2]
[382479813,1756643438257,-166.35140524,0.00017513,2]
[382479815,1756643438266,-500.0,0.00017513,2]
[382479817,1756643438275,-500.0,0.00017513,2]
[382479819,1756643438284,-310.0516382,0.00017513,2]
[382479821,1756643438293,-500.0,0.00017513,2]
[382479823,1756643438303,-500.0,0.00017513,2]
[382479825,1756643438312,-500.0,0.00017513,2]
[382479827,1756643438321,-500.0,0.00017513,2]
[382479829,1756643438331,-500.0,0.00017513,2]
[382479831,1756643438341,-500.0,0.00017513,2]
[382479833,1756643438350,-500.0,0.00017513,2]
[382479835,1756643438359,-500.0,0.00017513,2]
[382479837,1756643438368,-500.0,0.00017513,2]
[382479839,1756643438377,-500.0,0.00017513,2]
[382479841,1756643438386,-500.0,0.00017513,2]
[382479843,1756643438395,-500.0,0.00017513,2]
[382479845,1756643438404,-500.0,0.00017513,2]
[382479847,1756643438414,-500.0,0.00017513,2]
[382479849,1756643438423,-500.0,0.00017513,2]
[382479851,1756643438432,-500.0,0.00017513,2]
[382479853,1756643438442,-500.0,0.00017513,2]
[382479855,1756643438451,-500.0,0.00017513,2]
[382479857,1756643438460,-500.0,0.00017513,2]
[382479859,1756643438469,-500.0,0.00017513,2]
[382479861,1756643438479,-500.0,0.00017513,2]
[382479863,1756643438490,-500.0,0.00017513,2]
[382479865,1756643438510,-500.0,0.00017513,2]
[382479867,1756643438520,-500.0,0.00017513,2]
[382479870,1756643438531,-500.0,0.00017513,2]
[382479871,1756643438541,-500.0,0.00017513,2]
[382479873,1756643438551,-500.0,0.00017513,2]
[382479875,1756643438560,-500.0,0.00017513,2]
[382479878,1756643438570,-500.0,0.00017513,2]
[382479879,1756643438579,-500.0,0.00017513,2]
[382479882,1756643438588,-500.0,0.00017513,2]
[382479884,1756643438598,-500.0,0.00017513,2]
[382479886,1756643438607,-500.0,0.00017513,2]
[382479888,1756643438616,-427.38015253,0.00017513,2]
[382479890,1756643438626,-500.0,0.00017513,2]
[382479892,1756643438635,-500.0,0.00017513,2]
[382479894,1756643438644,-500.0,0.00017513,2]
[382479896,1756643438653,-500.0,0.00017513,2]
[382479898,1756643438664,-500.0,0.00017513,2]
[382479900,1756643438673,-500.0,0.00017513,2]
[382479902,1756643438682,-500.0,0.00017513,2]
[382479904,1756643438691,-500.0,0.00017513,2]
[382479906,1756643438700,-500.0,0.00017513,2]
[382479908,1756643438710,-500.0,0.00017513,2]
[382479910,1756643438719,-500.0,0.00017513,2]
[382479912,1756643438728,-500.0,0.00017513,2]
[382479914,1756643438741,-500.0,0.00017513,2]
[382479916,1756643438751,-500.0,0.00017513,2]
[382479918,1756643438760,-500.0,0.00017513,2]
[382479920,1756643438770,-500.0,0.00017513,2]
[382479922,1756643438779,-500.0,0.00017513,2]
[382479924,1756643438788,-500.0,0.00017513,2]
[382479926,1756643438800,-500.0,0.00017513,2]
[382479928,1756643438812,-500.0,0.00017513,2]
[382479930,1756643438821,-500.0,0.00017513,2]
[382479932,1756643438831,-500.0,0.00017513,2]
[382479934,1756643438840,-500.0,0.00017513,2]
[382479936,1756643438849,-500.0,0.00017513,2]
[382479938,1756643438859,-500.0,0.00017513,2]
[382479940,1756643438868,-500.0,0.00017513,2]
[382479942,1756643438878,-500.0,0.00017513,2]
[382479944,1756643438887,-500.0,0.00017513,2]
[382479946,1756643438896,-500.0,0.00017513,2]
[382479948,1756643438906,-500.0,0.00017513,2]
[382479950,1756643438915,-500.0,0.00017513,2]
[382479952,1756643438924,-500.0,0.00017513,2]
[382479954,1756643438934,-500.0,0.00017513,2]
[382479956,1756643438943,-500.0,0.00017513,2]
[382479958,1756643438952,-500.0,0.00017513,2]
[382479960,1756643438962,-500.0,0.00017513,2]
[382479962,1756643438972,-500.0,0.00017513,2]
[382479964,1756643438981,-500.0,0.00017513,2]
[382479966,1756643438990,-500.0,0.00017513,2]
[382479968,1756643439000,-500.0,0.00017513,2]
[382479970,1756643439009,-500.0,0.00017513,2]
[382479972,1756643439019,-500.0,0.00017513,2]
[382479974,1756643439028,-500.0,0.00017513,2]
[382479976,1756643439037,-500.0,0.00017513,2]
[382479978,1756643439047,-500.0,0.00017513,2]
[382479980,1756643439056,-500.0,0.00017513,2]
[382479982,1756643439065,-152.60075618,0.00017513,2]
[382479984,1756643439074,-500.0,0.00017513,2]
[382479986,1756643439084,-500.0,0.00017513,2]
[382479988,1756643439093,-500.0,0.00017513,2]
[382479990,1756643439103,-500.0,0.00017513,2]
[382479992,1756643439112,-500.0,0.00017513,2]
[382479994,1756643439122,-500.0,0.00017513,2]
[382479996,1756643439131,-500.0,0.00017513,2]
[382479998,1756643439140,-500.0,0.00017513,2]
[382480000,1756643439150,-500.0,0.00017513,2]
[382480002,1756643439159,-500.0,0.00017513,2]
[382480004,1756643439168,-500.0,0.00017513,2]
[382480006,1756643439177,-500.0,0.00017513,2]
[382480008,1756643439187,-500.0,0.00017513,2]
[382480010,1756643439196,-500.0,0.00017514,2]
[382480012,1756643439205,-511.72895983,0.00017514,2]
[382480014,1756643439215,-480.0,0.00017515,2]
[382480016,1756643439224,-1078.61,0.00017515,2]
[382480018,1756643439234,-1302.63,0.00017515,2]
[382480020,1756643439244,-3033.82,0.00017515,2]
[382480022,1756643439253,-1393.8,0.00017515,2]
[382480024,1756643439263,-3532.23,0.00017515,2]
[382480026,1756643439272,-492.8,0.00017516,2]
[382480028,1756643439282,-480.0,0.00017516,2]
[382480030,1756643439291,-480.0,0.00017516,2]
[382480032,1756643439300,-4002.83,0.00017516,2]
[382480034,1756643439310,-605.12,0.00017516,2]
[382480036,1756643439319,-480.0,0.00017516,2]
[382480038,1756643439328,-1082.02,0.00017516,2]
[382480040,1756643439338,-480.0,0.00017516,2]
[382480042,1756643439347,-1396.78,0.00017516,2]
[382480044,1756643439356,-480.0,0.00017516,2]
[382480046,1756643439365,-480.0,0.00017516,2]
[382480063,1756643439375,-1577.46,0.00017516,2]
[382480064,1756643439566,-950.4,0.00017516,2]
[382480065,1756643439576,-624.1,0.00017516,2]
[382480066,1756643439585,-480.0,0.00017516,2]
[382480067,1756643439595,-863.43,0.00017516,2]
[382480068,1756643439604,-480.0,0.00017516,2]
[382480069,1756643439614,-5790.36,0.00017516,2]
[382480070,1756643439626,-1497.05,0.00017516,2]
[382480071,1756643439635,-4813.24,0.00017516,2]
[382480072,1756643439645,-720.08,0.00017516,2]
[382480073,1756643439654,-4038.61,0.00017516,2]
[382480074,1756643439663,-480.0,0.00017516,2]
[382480075,1756643439672,-480.0,0.00017516,2]
[382480076,1756643439681,-573.36,0.00017516,2]
[382480078,1756643439691,-480.0,0.00017516,2]
[382480080,1756643439700,-500.0,0.00017517,2]
[382480082,1756643439709,-378.14187681,0.00017517,2]
[382480084,1756643439719,-480.0,0.00017517,2]
[382480086,1756643439729,-480.0,0.00017517,2]
[382480088,1756643439741,-483.00033591,0.00017517,2]
[382480090,1756643439751,-480.0,0.00017517,2]
[382480092,1756643439760,-526.87,0.00017517,2]
[382480094,1756643439769,-480.0,0.00017517,2]
[382480096,1756643439779,-995.77,0.00017517,2]
[382480098,1756643439789,-896.55,0.00017517,2]
[382480100,1756643439799,-480.0,0.00017517,2]
[382480102,1756643439809,-480.0,0.00017517,2]
[382480104,1756643439821,-480.0,0.00017517,2]
[382480106,1756643439830,-1285.66,0.00017517,2]
[382480108,1756643439839,-480.0,0.00017517,2]
[382480110,1756643439848,-28048.52867345,0.00017517,2]
[382480112,1756643439858,-1733.99,0.00017517,2]
[382480114,1756643439867,-1378.36,0.00017517,2]
[382480116,1756643439878,-480.0,0.00017517,2]
[382480118,1756643439887,-815.02,0.00017517,2]
[382480120,1756643439896,-227.27386968,0.00017517,2]
[382480122,1756643439905,-811.53,0.00017517,2]
[382480124,1756643439915,-505.77,0.00017517,2]
[382480126,1756643439924,-776.28,0.00017517,2]
[382480128,1756643439934,-480.0,0.00017517,2]
[382480130,1756643439943,-500.0,0.00017517,2]
[382480132,1756643439952,-984.98,0.00017517,2]
[382480134,1756643439962,-1291.1,0.00017517,2]
[382480136,1756643439971,-1227.32,0.00017517,2]
[382480160,1756643440191,-1592.65,0.00017517,2]
[382480162,1756643440201,-1212.94,0.00017517,2]
[382480164,1756643440210,-1620.98,0.00017517,2]
[382480166,1756643440220,-830.59,0.00017517,2]
[382480168,1756643440229,-480.60593743,0.00017517,2]
[382480170,1756643440238,-480.0,0.00017517,2]
[382480172,1756643440247,-486.92,0.00017517,2]
[382480174,1756643440256,-1224.88,0.00017517,2]
[382480176,1756643440265,-846.27,0.00017517,2]
[382480178,1756643440274,-480.0,0.00017517,2]
[382480180,1756643440283,-907.91,0.00017517,2]
[382480182,1756643440293,-1249.46,0.00017517,2]
[382480184,1756643440303,-1797.0,0.00017517,2]
[382480186,1756643440312,-1017.18,0.00017517,2]
[382480188,1756643440322,-537.14,0.00017517,2]
[382480190,1756643440332,-1954.87,0.00017517,2]
[382480192,1756643440341,-480.0,0.00017517,2]
[382480194,1756643440350,-2223.44,0.00017517,2]
[382480196,1756643440359,-480.0,0.00017517,2]
[382480198,1756643440369,-480.0,0.00017517,2]
[382480200,1756643440379,-1539.06,0.00017517,2]
[382480202,1756643440389,-1744.87,0.00017517,2]
[382480205,1756643440401,-1405.65,0.00017517,2]
[382480206,1756643440412,-1975.18,0.00017517,2]
[382480209,1756643440422,-703.18,0.00017517,2]
[382480210,1756643440431,-480.0,0.00017517,2]
[382480213,1756643440441,-2498.38,0.00017517,2]
[382480215,1756643440450,-480.0,0.00017517,2]
[382480216,1756643440459,-200.0,0.00017517,10]
[382480218,1756643440468,-852.74,0.00017517,2]
[382480220,1756643440477,-840.69,0.00017517,2]
[382480223,1756643440487,-480.0,0.00017517,2]
[382480224,1756643440496,-865.99,0.00017517,2]
[382480227,1756643440506,-480.0,0.00017517,2]
[382480229,1756643440516,-2047.87,0.00017517,2]
[382480231,1756643440525,-1542.0,0.00017517,2]
[382480233,1756643440535,-1636.71,0.00017517,2]
[382480235,1756643440544,-1218.8,0.00017517,2]
[382480236,1756643440553,-500.0,0.00017517,2]
[382480238,1756643440563,-500.0,0.00017517,2]
[382480241,1756643440572,-480.0,0.00017517,2]
[382480243,1756643440582,-500.0,0.00017517,2]
[382480245,1756643440592,-511.51,0.00017517,2]
[382480247,1756643440601,-480.0,0.00017517,2]
[382480249,1756643440610,-151.0,0.00017517,2]
[382480251,1756643440620,-151.0,0.00017517,2]
[382480253,1756643440629,-179.45001036,0.00017517,2]
[382480255,1756643440639,-500.0,0.00017517,2]
[382480256,1756643440648,-500.0,0.00017517,2]
[382480257,1756643440658,-854.9,0.00017517,2]
[382480258,1756643440668,-480.0,0.00017517,2]
[382480259,1756643440677,-151.0,0.00017517,2]
[382480260,1756643440687,-555.76,0.00017517,2]
[382480261,1756643440696,-1773.22,0.00017517,2]
[382480262,1756643440705,-965.47,0.00017517,2]
[382480263,1756643440715,-480.0,0.00017517,2]
[382480264,1756643440725,-480.0,0.00017517,2]
[382480265,1756643440735,-532.37,0.00017517,2]
[382480266,1756643440748,-480.0,0.00017517,2]
[382480267,1756643440757,-504.38854327,0.00017517,2]
[382480268,1756643440769,-1233.79,0.00017517,2]
[382480269,1756643440779,-646.75,0.00017517,2]
[382480270,1756643440791,-1877.42,0.00017517,2]
[382480271,1756643440800,-606.09,0.00017518,2]
[382480272,1756643440810,-496.53,0.00017518,2]
[382480273,1756643440821,-1041.77,0.00017518,2]
[382480274,1756643440831,-1171.4,0.00017518,2]
[382480275,1756643440841,-480.0,0.00017518,2]
[382480276,1756643440851,-778.0,0.00017518,2]
[382480277,1756643440860,-855.65,0.00017518,2]
[382480278,1756643440869,-2071.86,0.00017518,2]
[382480279,1756643440880,-480.0,0.00017518,2]
[382480280,1756643440890,-601.76,0.00017518,2]
[382480281,1756643440899,-268.76781147,0.00017518,2]
[382480282,1756643440908,-480.0,0.00017518,2]
[382480283,1756643440917,-640.34,0.00017518,2]
[382480284,1756643440926,-480.0,0.00017518,2]
[382480285,1756643440935,-583.68,0.00017518,2]
[382480286,1756643440944,-1578.77,0.00017518,2]
[382480287,1756643440953,-1550.12,0.00017518,2]
[382480288,1756643440963,-480.0,0.00017518,2]
[382480289,1756643440974,-480.0,0.00017518,2]
[382480290,1756643440987,-480.0,0.00017518,2]
[382480291,1756643440997,-445.54626521,0.00017518,2]
[382480292,1756643441006,-1297.72,0.00017518,2]
[382480293,1756643441015,-480.0,0.00017518,2]
[382480294,1756643441024,-1562.44,0.00017518,2]
[382480295,1756643441034,-480.0,0.00017518,2]
[382480296,1756643441043,-480.0,0.00017518,2]
[382480297,1756643441052,-480.0,0.00017518,2]
[382480298,1756643441062,-480.0,0.00017518,2]
[382480299,1756643441071,-2000.0,0.00017518,15]
[382480300,1756643441080,-280.70832157,0.00017518,15]
[382480301,1756643441090,-650.9,0.00017518,2]
[382480302,1756643441099,-480.0,0.00017518,2]
[382480303,1756643441110,-1637.91,0.00017518,2]
[382480304,1756643441119,-480.0,0.00017518,2]
[382480305,1756643441130,-480.0,0.00017518,2]
[382480306,1756643441140,-480.0,0.00017518,2]
[382480307,1756643441150,-480.0,0.00017518,2]
[382480308,1756643441159,-1693.91,0.00017518,2]
[382480309,1756643441168,-721.32,0.00017518,2]
[382480310,1756643441177,-555.57,0.00017518,2]
[382480311,1756643441186,-480.0,0.00017518,2]
[382480312,1756643441195,-480.0,0.00017518,2]
[382480313,1756643441205,-638.49,0.00017518,2]
[382480314,1756643441214,-1455.08,0.00017518,2]
[382480315,1756643441224,-887.51,0.00017518,2]
[382480316,1756643441233,-847.23,0.00017518,2]
[382480317,1756643441243,-500.0,0.00017518,2]
[382480318,1756643441253,-151.61138015,0.00017518,2]
[382480319,1756643441262,-154.81963238,0.00017518,2]
[382480320,1756643441271,-822.0,0.00017518,2]
[382480321,1756643441280,-151.0,0.00017518,2]
[382480322,1756643441289,-151.0,0.00017518,2]
[382480323,1756643441298,-201.51520989,0.00017518,2]
[382480324,1756643441307,-151.0,0.00017518,2]
[382480325,1756643441317,-151.00466912,0.00017518,2]
[382480326,1756643441326,-1243.99,0.00017518,2]
[382480327,1756643441336,-272.23210294,0.00017518,2]
[382480328,1756643441346,-480.72266844,0.00017518,2]
[382480329,1756643441355,-2273.44,0.00017518,2]
[382480330,1756643441364,-2385.19,0.00017518,2]
[382480331,1756643441375,-480.0,0.00017518,2]
[382480332,1756643441384,-1464.13,0.00017518,2]
[382480333,1756643441394,-984.47,0.00017518,2]
[382480334,1756643441404,-1569.43,0.00017518,2]
[382480335,1756643441413,-481.182224,0.00017518,2]
[382480336,1756643441423,-411.47985354,0.00017518,2]
[382480337,1756643441432,-4607.93,0.00017518,2]
[382480338,1756643441441,-6863.46,0.00017518,2]
[382480339,1756643441452,-1642.79,0.00017518,2]
[382480340,1756643441461,-480.0,0.00017518,2]
[382480341,1756643441471,-567.49,0.00017518,2]
[382480342,1756643441480,-480.0,0.00017518,2]
[382480343,1756643441489,-727.79,0.00017518,2]
[382480344,1756643441499,-1815.96,0.00017518,2]
[382480345,1756643441508,-1473.14,0.00017518,2]
[382480346,1756643441518,-481.80391927,0.00017518,2]
[382480347,1756643441527,-1603.31,0.00017518,2]
[382480348,1756643441537,-882.2,0.00017518,2]
[382480349,1756643441546,-480.0,0.00017518,2]
[382480350,1756643441556,-2155.02,0.00017518,2]
[382480351,1756643441565,-480.0,0.00017518,2]
[382480352,1756643441574,-1973.57,0.00017518,2]
[382480353,1756643441584,-2642.58,0.00017518,2]
[382480354,1756643441593,-706.43,0.00017518,2]
[382480355,1756643441603,-480.0,0.00017518,2]
[382480356,1756643441612,-1092.28,0.00017518,2]
[382480357,1756643441622,-64730.420126,0.00017518,2]
[382480358,1756643441632,-480.0,0.00017518,2]
[382480359,1756643441641,-740.8,0.00017518,2]
[382480360,1756643441651,-590.8,0.00017518,2]
[382480361,1756643441661,-480.0,0.00017518,2]
[382480362,1756643441670,-500.74,0.00017518,2]
[382480363,1756643441680,-480.0,0.00017518,2]
[382480364,1756643441696,-504.98,0.00017518,2]
[382480365,1756643441705,-4471.9257339,0.00017518,2]
[382480366,1756643441715,-480.0,0.00017519,2]
[382480368,1756643441724,-480.0,0.00017519,2]
[382480370,1756643441734,-691.19,0.00017519,2]
[382480372,1756643441748,-549.67,0.00017519,2]
[382480373,1756643441758,-480.0,0.00017519,2]
[382480375,1756643441767,-480.0,0.00017519,2]
[382480377,1756643441776,-480.0,0.00017519,2]
[382480379,1756643441787,-480.0,0.00017519,2]
[382480380,1756643441796,-480.0,0.00017519,2]
[382480383,1756643441807,-509.35318846,0.00017519,2]
[382480385,1756643441818,-480.0,0.00017519,2]
[382480386,1756643441827,-1148.38,0.00017519,2]
[382480387,1756643441836,-481.90214128,0.00017519,2]
[382480388,1756643441846,-480.0,0.00017519,2]
[382480389,1756643441856,-797.53,0.00017519,2]
[382480390,1756643441865,-248.91033617,0.00017519,2]
[382480391,1756643441876,-480.0,0.00017519,2]
[382480392,1756643441885,-480.0,0.00017519,2]
[382480393,1756643441895,-480.0,0.00017519,2]
[382480394,1756643441904,-480.0,0.00017519,2]
[382480395,1756643441913,-480.0,0.00017519,2]
[382480396,1756643441924,-480.0,0.00017519,2]
[382480398,1756643441933,-480.0,0.00017519,2]
[382480399,1756643441942,-482.32,0.00017519,2]
[382480400,1756643441951,-855.25,0.00017519,2]
[382480401,1756643441960,-610.71,0.00017519,2]
[382480402,1756643441970,-480.0,0.00017519,2]
[382480403,1756643441980,-480.0,0.00017519,2]
[382480404,1756643441989,-957.25,0.00017519,2]
[382480405,1756643441998,-549.82,0.00017519,2]
[382480406,1756643442007,-480.0,0.00017519,2]
[382480407,1756643442022,-1032.08,0.00017519,2]
[382480408,1756643442032,-1278.6,0.00017519,2]
[382480409,1756643442041,-793.35,0.00017519,2]
[382480410,1756643442051,-1247.13,0.00017519,2]
[382480411,1756643442060,-480.0,0.00017519,2]
[382480412,1756643442069,-480.0,0.00017519,2]
[382480413,1756643442084,-480.0,0.00017519,2]
[382480414,1756643442093,-480.0,0.00017519,2]
[382480415,1756643442102,-480.0,0.00017519,2]
[382480416,1756643442111,-480.0,0.00017519,2]
[382480417,1756643442121,-480.0,0.00017519,2]
[382480418,1756643442131,-480.0,0.00017519,2]
[382480419,1756643442141,-480.0,0.00017519,2]
[382480420,1756643442150,-480.0,0.00017519,2]
[382480421,1756643442160,-480.0,0.00017519,2]
[382480422,1756643442170,-480.0,0.00017519,2]
[382480423,1756643442179,-480.0,0.00017519,2]
[382480424,1756643442191,-480.0,0.00017519,2]
[382480426,1756643442200,-582.49111764,0.00017519,2]
[382480427,1756643442212,-480.0,0.00017519,2]
[382480428,1756643442221,-480.0,0.00017519,2]
[382480429,1756643442230,-551.65,0.00017519,2]
[382480430,1756643442239,-480.0,0.00017519,2]
[382480431,1756643442248,-481.13981514,0.00017519,2]
[382480432,1756643442257,-480.0,0.00017519,2]